Workbook

Sheet Cost allocation by enterprise
B3: Cost allocation and categorisation tool | Q3: Summary of cost category tool outputs
B4: DSE managed | C4: 5500
B5: Crop area (ha) | C5: 1150
B6: Grazing area (ha) | C6: 690 | F6: Expense allocation zone
F7: EE | G7: EE | H7: OH | I7: OH | J7: PERS | K7: FIN | L7: CAP | M7: LSP | N7: TAX | AN7: EE | AO7: EE | AP7: OH | AQ7: OH | AR7: PERS | AS7: FIN | AT7: CAP | AU7: LSP | AV7: TAX
F8: C | G8: LS | H8: C | I8: LS | J8: Pers | K8: Fin | L8: Capex | M8: LS | N8: TAX | AN8: C | AO8: LS | AP8: C | AQ8: LS | AR8: Pers | AS8: Fin | AT8: Capex | AU8: LS | AV8: TAX
F9: Crop | G9: Livestock | H9: Crop | I9: Livestock | J9: Personal | K9: Finance | L9: Capex | M9: LS purch | N9: Tax | O9: Error | Q9: Livestock expense allocation by category | V9: Crop expense allocation by category | AG9: Cost | AH9: Category 1 | AJ9: Category 2 | AN9: Crop | AO9: Livestock | AP9: Crop | AQ9: Livestock | AR9: Personal | AS9: Finance | AT9: Capex | AU9: LS purch | AV9: Tax
B10: Expenses | C10: Total | D10: Categorise expenses | F10: Enterprise | G10: Enterprise | H10: Overhead | I10: Overhead | J10: Personal | K10: =K9 -> Finance | L10: Capital | M10: Purchases | N10: =N9 -> Tax | O10: Check
B11: B&S Crumbworth wages | C11: 48000 | D11: Wages & Salaries – General | H11: 0.8 | I11: 0.2 | O11: =IF(SUM(F11:N11)=100%,SUM(F11:N11),IF(B11="","","Not 100%")) -> 1 | Q11: Livestock enterprise expense category | R11: Code | S11: Gross | T11: $/DSE | V11: Crop enterprise expense category | W11: Code | X11: Gross | Y11: $/ha | AB11: =_xlfn.XLOOKUP(D11,$AG$11:$AG$147,$AI$11:$AI$147) -> WAG | AC11: =_xlfn.XLOOKUP(D11,$AG$11:$AG$147,$AK$11:$AK$147) -> OH | AD11: =IF(_xlfn.XLOOKUP(D11,$AG$11:$AG$147,$AL$11:$AL$147)=0,"",_xlfn.XLOOKUP(D11,$AG$11:$AG$147,$AL$11:$AL$147)) ->  | AE11: =IF(_xlfn.XLOOKUP($D11,$AG$11:$AG$147,$AM$11:$AM$147)=0,"",_xlfn.XLOOKUP($D11,$AG$11:$AG$147,$AM$11:$AM$147)) ->  | AG11: Accounting | AH11: Administration | AI11: ADM | AJ11: Overhead | AK11: OH | AP11: 0.2 | AQ11: 0.8
B12: M&P Crumbworth wages | C12: 48000 | D12: Owner wages | H12: 0.8 | I12: 0.2 | O12: =IF(SUM(F12:N12)=100%,SUM(F12:N12),IF(B12="","","Not 100%")) -> 1 | Q12: Animal health & breeding | R12: ANH | S12: =SUM(($AB$11:$AB$79=$R12)*($C$11:$C$79)*($G$11:$G$79)) -> 8200 | T12: =S12/$C$4 -> 1.490909091 | V12: Ag Chemicals | W12: AGCH | X12: =SUM(($AB$11:$AB$79=$W12)*($C$11:$C$79)*($F$11:$F$79)) -> 112000 | Y12: =X12/$C$5 -> 97.39130435 | AB12: OWAG | AC12: OH | AG12: Administration - general | AH12: Administration | AI12: ADM | AJ12: Overhead | AK12: OH
B13: Miscellaneous | C13: 18000 | D13: Materials/Miscellaneous - General | H13: 0.8 | I13: 0.2 | O13: 1 | Q13: Contract services | R13: CON | S13: =SUM(($AB$11:$AB$79=$R13)*($C$11:$C$79)*($G$11:$G$79)) -> 6400 | T13: 1.163636364 | V13: Contract services | W13: CON | X13: =SUM(($AB$11:$AB$79=$W13)*($C$11:$C$79)*($F$11:$F$79)) -> 0 | Y13: 0 | AB13: MAT | AC13: OH | AE13: MULTIPLE | AG13: Agistment | AH13: Supplementary feed | AI13: SUPF | AJ13: Enterprise | AK13: EE | AL13: LS
B14: School Fees | C14: 6000 | D14: School fees | J14: 1 | O14: 1 | Q14: Freight | R14: FRT | S14: =SUM(($AB$11:$AB$79=$R14)*($C$11:$C$79)*($G$11:$G$79)) -> 0 | T14: 0 | V14: Fertiliser/Lime & gypsum | W14: FERT | X14: =SUM(($AB$11:$AB$79=$W14)*($C$11:$C$79)*($F$11:$F$79))+SUM(($AB$11:$AB$79=$W$33)*($C$11:$C$79)*($F$11:$F$79)) -> 131250 | Y14: 114.1304348 | AB14: PERS | AC14: PERS | AG14: Animal health treatments | AH14: Animal health & breeding | AI14: ANH | AJ14: Enterprise | AK14: EE | AL14: LS
B15: Fuel, Oil, Grease | C15: 38000 | D15: Fuel - Diesel for general farm use | F15: 0.8 | H15: 0.1 | I15: 0.1 | O15: 1 | Q15: Insurance | R15: INS | S15: =SUM(($AB$11:$AB$79=$R15)*($C$11:$C$79)*($G$11:$G$79)) -> 0 | T15: 0 | V15: Freight | W15: FRT | X15: =SUM(($AB$11:$AB$79=$W15)*($C$11:$C$79)*($F$11:$F$79)) -> 0 | Y15: 0 | AB15: FUEL | AC15: OH | AE15: MULTIPLE | AG15: Antibiotics and medicines, syringes, needles | AH15: Animal health & breeding | AI15: ANH | AJ15: Enterprise | AK15: EE | AL15: LS
B16: R&M general | C16: 54000 | D16: Repairs to fixed intrastructure (bolted down) | H16: 0.8 | I16: 0.2 | O16: 1 | Q16: Materials | R16: MAT | S16: =SUM(($AB$11:$AB$79=$R16)*($C$11:$C$79)*($G$11:$G$79)) -> 0 | T16: 0 | V16: Fuel and lubricants | W16: FUEL | X16: =SUM(($AB$11:$AB$79=$W16)*($C$11:$C$79)*($F$11:$F$79)) -> 30400 | Y16: 26.43478261 | AB16: R&M | AC16: OH | AG16: Antiseptic, ointments and powders for livestock | AH16: Animal health & breeding | AI16: ANH | AJ16: Enterprise | AK16: EE | AL16: LS
B17: R&M plant and equipment | C17: 22500 | D17: Repairs & maintenance cropping plant | F17: 1 | O17: 1 | Q17: Selling costs and freight | R17: SELC | S17: =SUM(($AB$11:$AB$79=$R17)*($C$11:$C$79)*($G$11:$G$79)) -> 12500 | T17: 2.272727273 | V17: Insurance | W17: INS | X17: =SUM(($AB$11:$AB$79=$W17)*($C$11:$C$79)*($F$11:$F$79)) -> 12040 | Y17: 10.46956522 | AB17: R&M | AC17: EE | AD17: C | AG17: Bank fees | AH17: Administration | AI17: ADM | AJ17: Overhead | AK17: OH
B18: Stock Water | C18: 9600 | D18: Repairs to water infrastructure | I18: 1 | O18: 1 | Q18: Shearing and crutching | R18: SHR | S18: =SUM(($AB$11:$AB$79=$R18)*($C$11:$C$79)*($G$11:$G$79)) -> 35900 | T18: 6.527272727 | V18: Materials | W18: MAT | X18: =SUM(($AB$11:$AB$79=$W18)*($C$11:$C$79)*($F$11:$F$79)) -> 0 | Y18: 0 | AB18: R&M | AC18: OH | AG18: Breeding Ram harnesses, excl Semen | AH18: Animal health & breeding | AI18: ANH | AJ18: Enterprise | AK18: EE | AL18: LS
B19: Insurances | C19: 24800 | D19: Insurance general property | H19: 0.8 | I19: 0.2 | O19: 1 | Q19: Supplementary feed | R19: SUPF | S19: =SUM(($AB$11:$AB$79=$R19)*($C$11:$C$79)*($G$11:$G$79)) -> 13000 | T19: 2.363636364 | V19: R&M plant and equipment | W19: R&M | X19: =SUM(($AB$11:$AB$79=$W19)*($C$11:$C$79)*($F$11:$F$79)) -> 22500 | Y19: 19.56521739 | AB19: INS | AC19: OH | AG19: Breeding regulators (eg. hormones) if not in AI | AH19: Animal health & breeding | AI19: ANH | AJ19: Enterprise | AK19: EE | AL19: LS
B20: Crop insurance | C20: 12040 | D20: Insurance - crop specific (hail/fire etc) | F20: 1 | O20: 1 | V20: Seed | W20: SEED | X20: =SUM(($AB$11:$AB$79=$W20)*($C$11:$C$79)*($F$11:$F$79)) -> 21000 | Y20: 18.26086957 | AB20: INS | AC20: EE | AD20: C | AG20: Capital expenditure - general | AH20: Capital expenditure | AI20: CAPEX | AJ20: Capex | AK20: CAP | AL20: Capex
B21: Telephone | C21: 4250 | D21: Communications (telephone, internet, mobile) | H21: 0.8 | I21: 0.2 | O21: 1 | Q21: Livestock enterprise expense allocation | S21: =SUM(S12:S19) -> 76000 | T21: =SUM(T12:T19) -> 13.81818182 | V21: Crop enterprise expense allocation | X21: =SUM(X12:X20) -> 329190 | Y21: =SUM(Y12:Y20) -> 286.2521739 | AB21: ADM | AC21: OH | AG21: Chemicals - crop | AH21: Agricultural chemicals | AI21: AGCH | AJ21: Enterprise | AK21: EE | AL21: C
B22: Electricity | C22: 10000 | D22: Electricity farm | H22: 0.8 | I22: 0.2 | O22: 1 | AB22: ELG | AC22: OH | AG22: Chemicals - for landcare work | AH22: Landcare | AI22: LC | AJ22: Overhead | AK22: OH
B23: Animal Health | C23: 8200 | D23: Animal health treatments | G23: 1 | O23: 1 | Q23: Livestock overhead expense category | R23: Code | S23: Livestock | T23: $/DSE | V23: Crop overhead expense category | W23: Code | X23: Crop | Y23: $/ha | AB23: ANH | AC23: EE | AD23: LS | AG23: Chemicals - general | AH23: Agricultural chemicals | AI23: AGCH | AJ23: Overheads | AK23: OH | AM23: MULTIPLE
B24: Crop chemicals | C24: 112000 | D24: Chemicals - crop | F24: 1 | O24: 1 | Q24: Administration | R24: ADM | S24: =SUM(($AB$11:$AB$79=$R24)*($C$11:$C$79)*($I$11:$I$79)) -> 12138 | T24: =S24/$C$4 -> 2.206909091 | V24: Administration | W24: ADM | X24: =+SUM(($AB$11:$AB$79=$R24)*($C$11:$C$79)*($H$11:$H$79)) -> 21552 | Y24: =X24/$C$5 -> 18.74086957 | AB24: AGCH | AC24: EE | AD24: C | AG24: Classing (sheep) | AH24: Animal health & breeding | AI24: ANH | AJ24: Enterprise | AK24: EE | AL24: LS
B25: Fertiliser | C25: 155000 | D25: Fertiliser - general | F25: 0.8 | I25: 0.2 | O25: 1 | Q25: Chemicals | R25: AGCH | S25: =SUM(($AB$11:$AB$79=$R25)*($C$11:$C$79)*($I$11:$I$79)) -> 0 | T25: 0 | V25: Chemicals | W25: AGCH | X25: =+SUM(($AB$11:$AB$79=$R25)*($C$11:$C$79)*($H$11:$H$79)) -> 0 | Y25: 0 | AB25: FERT | AC25: OH | AE25: MULTIPLE | AG25: Commission on livestock sales | AH25: Selling Costs | AI25: SELC | AJ25: Enterprise | AK25: EE | AL25: LS
B26: Lime/Gyp | C26: 14500 | D26: Lime & gypsum | F26: 0.5 | I26: 0.5 | O26: 1 | Q26: Contract services | R26: CON | S26: =SUM(($AB$11:$AB$79=$R26)*($C$11:$C$79)*($I$11:$I$79)) -> 12800 | T26: 2.327272727 | V26: Contract services | W26: CON | X26: =+SUM(($AB$11:$AB$79=$R26)*($C$11:$C$79)*($H$11:$H$79)) -> 12800 | Y26: 11.13043478 | AB26: LIME | AC26: OH | AE26: MULTIPLE | AG26: Communications (telephone, internet, mobile) | AH26: Administration | AI26: ADM | AJ26: Overhead | AK26: OH
B27: Seed | C27: 42000 | D27: Seed - general | F27: 0.5 | I27: 0.5 | O27: 1 | Q27: Depreciation | R27: DEP | S27: =SUM(($AB$11:$AB$79=$R27)*($C$11:$C$79)*($I$11:$I$79)) -> 0 | T27: 0 | V27: Depreciation | W27: DEP | X27: =+SUM(($AB$11:$AB$79=$R27)*($C$11:$C$79)*($H$11:$H$79)) -> 0 | Y27: 0 | AB27: SEED | AC27: OH | AE27: MULTIPLE | AG27: Computer costs (computers, programs, apps) | AH27: Administration | AI27: ADM | AJ27: Overhead | AK27: OH
B28: Professional Fees | C28: 18000 | D28: Consulting fees | H28: 0.5 | I28: 0.5 | O28: 1 | Q28: Electricity and gas | R28: ELG | S28: =SUM(($AB$11:$AB$79=$R28)*($C$11:$C$79)*($I$11:$I$79)) -> 2000 | T28: 0.3636363636 | V28: Electricity and gas | W28: ELG | X28: =+SUM(($AB$11:$AB$79=$R28)*($C$11:$C$79)*($H$11:$H$79)) -> 8000 | Y28: 6.956521739 | AB28: ADM | AC28: OH | AG28: Consulting fees | AH28: Administration | AI28: ADM | AJ28: Overhead | AK28: OH
B29: Shearing & Crutching | C29: 35400 | D29: Shearing | G29: 1 | O29: 1 | Q29: Fertiliser | R29: FERT | S29: =SUM(($AB$11:$AB$79=$R29)*($C$11:$C$79)*($I$11:$I$79)) -> 31000 | T29: 5.636363636 | V29: Fertiliser | W29: FERT | X29: =+SUM(($AB$11:$AB$79=$R29)*($C$11:$C$79)*($H$11:$H$79)) -> 0 | Y29: 0 | AB29: SHR | AC29: EE | AD29: LS | AG29: Contract costs earthworks (existing works) | AH29: Repairs & maintenance | AI29: R&M | AJ29: Overhead | AK29: OH
B30: Shear Packs | C30: 500 | D30: Shearing supplies (combs/cutters etc) | G30: 1 | O30: 1 | Q30: Fuel and lubricants | R30: FUEL | S30: =SUM(($AB$11:$AB$79=$R30)*($C$11:$C$79)*($I$11:$I$79)) -> 3800 | T30: 0.6909090909 | V30: Fuel and lubricants | W30: FUEL | X30: =+SUM(($AB$11:$AB$79=$R30)*($C$11:$C$79)*($H$11:$H$79)) -> 3800 | Y30: 3.304347826 | AB30: SHR | AC30: EE | AD30: LS | AG30: Contract costs earthworks (new works) | AH30: Capital expenditure | AI30: CAPEX | AJ30: Capital expenditure | AK30: CAP | AL30: Capex | AT30: 1
B31: Vehicles | C31: 9600 | D31: Motor vehicle expenses | H31: 0.8 | I31: 0.2 | O31: 1 | Q31: Insurance | R31: INS | S31: =SUM(($AB$11:$AB$79=$R31)*($C$11:$C$79)*($I$11:$I$79)) -> 4960 | T31: 0.9018181818 | V31: Insurance | W31: INS | X31: =+SUM(($AB$11:$AB$79=$R31)*($C$11:$C$79)*($H$11:$H$79)) -> 19840 | Y31: 17.25217391 | AB31: MVE | AC31: OH | AG31: Contract crop operations (sow/harvest/spray spread) | AH31: Contract services | AI31: CON | AJ31: Enterprise | AK31: EE | AL31: C
B32: Work Clothes | C32: 500 | D32: Materials/Miscellaneous - General | H32: 0.8 | I32: 0.2 | O32: 1 | Q32: Landcare | R32: LC | S32: =SUM(($AB$11:$AB$79=$R32)*($C$11:$C$79)*($I$11:$I$79)) -> 400 | T32: 0.07272727273 | V32: Landcare | W32: LC | X32: =+SUM(($AB$11:$AB$79=$R32)*($C$11:$C$79)*($H$11:$H$79)) -> 1600 | Y32: 1.391304348 | AB32: MAT | AC32: OH | AE32: MULTIPLE | AG32: Contract fencing operations (building new fences) | AH32: Capital expenditure | AI32: CAPEX | AJ32: Capital expenditure | AK32: CAP | AL32: Capex
B33: Rural press subscriptions | C33: 840 | D33: Subscriptions & memberships | H33: 0.8 | I33: 0.2 | O33: 1 | Q33: Lime/gypsum | R33: LIME | S33: =SUM(($AB$11:$AB$79=$R33)*($C$11:$C$79)*($I$11:$I$79)) -> 7250 | T33: 1.318181818 | V33: Lime/gypsum | W33: LIME | X33: =+SUM(($AB$11:$AB$79=$R33)*($C$11:$C$79)*($H$11:$H$79)) -> 0 | Y33: 0 | AB33: ADM | AC33: OH | AG33: Contract fencing operations (repairs to existing fences) | AH33: Repairs & maintenance | AI33: R&M | AJ33: Overhead | AK33: OH
B34: Fencing & trees | C34: 2000 | D34: Landcare - general | H34: 0.8 | I34: 0.2 | O34: 1 | Q34: Materials | R34: MAT | S34: =SUM(($AB$11:$AB$79=$R34)*($C$11:$C$79)*($I$11:$I$79)) -> 3700 | T34: 0.6727272727 | V34: Materials | W34: MAT | X34: =+SUM(($AB$11:$AB$79=$R34)*($C$11:$C$79)*($H$11:$H$79)) -> 14800 | Y34: 12.86956522 | AB34: LC | AC34: OH | AG34: Contract livestock mustering | AH34: Contract services | AI34: CON | AJ34: Enterprise | AK34: EE | AL34: LS
B35: Contracting Work | C35: 32000 | D35: Contract work - general | G35: 0.2 | H35: 0.4 | I35: 0.4 | O35: 1 | Q35: Motor vehicle expenses | R35: MVE | S35: =SUM(($AB$11:$AB$79=$R35)*($C$11:$C$79)*($I$11:$I$79)) -> 1920 | T35: 0.3490909091 | V35: Motor vehicle expenses | W35: MVE | X35: =+SUM(($AB$11:$AB$79=$R35)*($C$11:$C$79)*($H$11:$H$79)) -> 7680 | Y35: 6.67826087 | AB35: CON | AC35: OH | AE35: MULTIPLE | AG35: Contract livestock operations (mark/yardwork) | AH35: Contract services | AI35: CON | AJ35: Enterprise | AK35: EE | AL35: LS
B36: Ewe Replace | C36: 150000 | D36: Livestock purchases | M36: 1 | O36: 1 | Q36: Rates and rents | R36: RAT | S36: =SUM(($AB$11:$AB$79=$R36)*($C$11:$C$79)*($I$11:$I$79)) -> 2860 | T36: 0.52 | V36: Rates and rents | W36: RAT | X36: =+SUM(($AB$11:$AB$79=$R36)*($C$11:$C$79)*($H$11:$H$79)) -> 11440 | Y36: 9.947826087 | AB36: LSP | AC36: LSP | AD36: LS | AG36: Contract pasture operations (sow/spray/plough/spread) | AH36: Contract services | AI36: CON | AJ36: Overhead | AK36: OH
B37: Ram Replace | C37: 12000 | D37: Livestock purchases | M37: 1 | O37: 1 | Q37: R&M general | R37: R&M | S37: =SUM(($AB$11:$AB$79=$R37)*($C$11:$C$79)*($I$11:$I$79)) -> 20400 | T37: 3.709090909 | V37: R&M general | W37: R&M | X37: =+SUM(($AB$11:$AB$79=$R37)*($C$11:$C$79)*($H$11:$H$79)) -> 43200 | Y37: 37.56521739 | AB37: LSP | AC37: LSP | AD37: LS | AG37: Contract work - general | AH37: Contract services | AI37: CON | AJ37: Overhead | AK37: OH | AM37: MULTIPLE
B38: Shire Rates | C38: 12800 | D38: Shire & council rates | H38: 0.8 | I38: 0.2 | O38: 1 | Q38: Seed | R38: SEED | S38: =SUM(($AB$11:$AB$79=$R38)*($C$11:$C$79)*($I$11:$I$79)) -> 21000 | T38: 3.818181818 | V38: Seed | W38: SEED | X38: =+SUM(($AB$11:$AB$79=$R38)*($C$11:$C$79)*($H$11:$H$79)) -> 0 | Y38: 0 | AB38: RAT | AC38: OH | AG38: Contractors for infrastructure build (buidling new) | AH38: Capital expenditure | AI38: CAPEX | AJ38: Capital expenditure | AK38: CAP | AL38: Capex
B39: Income tax | C39: 0 | D39: Tax | N39: 1 | O39: 1 | Q39: Wages | R39: WAG | S39: =SUM(($AB$11:$AB$79=$R39)*($C$11:$C$79)*($I$11:$I$79)) -> 9600 | T39: 1.745454545 | V39: Wages | W39: WAG | X39: =+SUM(($AB$11:$AB$79=$R39)*($C$11:$C$79)*($H$11:$H$79)) -> 38400 | Y39: 33.39130435 | AB39: 0 | AC39: TAX | AG39: Contractors for infrastructure repairs (repairing existing) | AH39: Repairs & maintenance | AI39: R&M | AJ39: Overhead | AK39: OH
B40: Licences & Rego | C40: 10600 | D40: Administration - general | H40: 0.8 | I40: 0.2 | O40: 1 | Q40: Wages owner | R40: OWAG | S40: =SUM(($AB$11:$AB$79=$R40)*($C$11:$C$79)*($I$11:$I$79)) -> 9600 | T40: 1.745454545 | V40: Wages owner | W40: OWAG | X40: =+SUM(($AB$11:$AB$79=$R40)*($C$11:$C$79)*($H$11:$H$79)) -> 38400 | Y40: 33.39130435 | AB40: ADM | AC40: OH | AG40: Crutching | AH40: Shearing & crutching | AI40: SHR | AJ40: Enterprise | AK40: EE | AL40: LS
B41: Earthworks | C41: 0 | D41: Capital expenditure - general | L41: 1 | O41: 1 | Q41: Livestock overhead expense allocation | S41: =SUM(S24:S40) -> 143428 | T41: =SUM(T24:T40) -> 26.07781818 | V41: Crop overhead expense allocation | X41: =SUM(X24:X40) -> 221512 | Y41: =SUM(Y24:Y40) -> 192.6191304 | AB41: CAPEX | AC41: CAP | AD41: Capex | AG41: Deep ripping for planting | AH41: Landcare | AI41: LC | AJ41: Overhead | AK41: OH
B42: LLS rates | C42: 1500 | D42: Local land services rates (levies on landuse) | H42: 0.8 | I42: 0.2 | O42: 1 | Q42: Total livestock operating costs | S42: =S21+S41 -> 219428 | T42: =T21+T41 -> 39.896 | V42: Total crop operating costs | X42: =X21+X41 -> 550702 | Y42: =Y21+Y41 -> 478.8713043 | AB42: RAT | AC42: OH | AG42: Depreciation | AH42: Depreciation | AI42: DEP | AJ42: Overhead | AK42: OH
B43: Interest costs | C43: 56050 | D43: Interest costs | K43: 1 | O43: 1 | AB43: =_xlfn.XLOOKUP(D43,$AG$11:$AG$147,$AI$11:$AI$147) -> INT | AC43: =_xlfn.XLOOKUP(D43,$AG$11:$AG$147,$AK$11:$AK$147) -> FIN | AD43: =IF(_xlfn.XLOOKUP(D43,$AG$11:$AG$147,$AL$11:$AL$147)=0,"",_xlfn.XLOOKUP(D43,$AG$11:$AG$147,$AL$11:$AL$147)) ->  | AE43: =IF(_xlfn.XLOOKUP($D43,$AG$11:$AG$147,$AM$11:$AM$147)=0,"",_xlfn.XLOOKUP($D43,$AG$11:$AG$147,$AM$11:$AM$147)) ->  | AG43: Dips and sprays for livestock | AH43: Animal health & breeding | AI43: ANH | AJ43: Enterprise | AK43: EE | AL43: LS
B44: Lease | C44: 48000 | D44: Lease costs | K44: 1 | O44: 1 | AB44: LEASE | AC44: FIN | AG44: Drawings | AH44: Drawings | AI44: DRAW | AJ44: Personal | AK44: PERS
B45: Grain for supp feeding | C45: 9000 | D45: Fodder purchases for livestock feed | G45: 1 | O45: 1 | Q45: Whole farm expenses | AB45: SUPF | AC45: EE | AD45: LS | AG45: Drenches and drench guns | AH45: Animal health & breeding | AI45: ANH | AJ45: Enterprise | AK45: EE | AL45: LS
B46: Hay for supp feeding | C46: 4000 | D46: Fodder purchases for livestock feed | G46: 1 | O46: 1 | Q46: Expense category | S46: Amount | AB46: SUPF | AC46: EE | AD46: LS | AG46: Electricity farm | AH46: Electricity & gas | AI46: ELG | AJ46: Overhead | AK46: OH
B47: Selling costs | C47: 12500 | D47: Sales costs - general livestock | G47: 1 | O47: 1 | Q47: Enterprise expenses | S47: =S21+X21 -> 405190 | AB47: SELC | AC47: EE | AD47: LS | AG47: Electricity pumps | AH47: Electricity & gas | AI47: ELG | AJ47: Overhead | AK47: OH
AB48: 0 | AC48: 0 | AG48: Electricity sheds | AH48: Electricity & gas | AI48: ELG | AJ48: Overhead | AK48: OH
Q49: Overhead expenses | S49: Whole farm | AB49: 0 | AC49: 0 | AG49: Employment Expenses | AH49: Wages | AI49: WAG | AJ49: Overhead | AK49: OH
Q50: Administration | S50: =S24+X24 -> 33690 | AB50: 0 | AC50: 0 | AG50: Farm grown feed @ market value | AH50: Supplementary feed | AI50: SUPF | AJ50: Enterprise | AK50: EE | AL50: LS
Q51: Chemicals | S51: 0 | AB51: 0 | AC51: 0 | AG51: Fencing materials (new fences) | AH51: Capital expenditure | AI51: CAPEX | AJ51: Capex | AK51: CAP | AL51: Capex
Q52: Contract services | S52: 25600 | AB52: 0 | AC52: 0 | AG52: Fencing materials (repairing existing fences) | AH52: Repairs & maintenance | AI52: R&M | AJ52: Overhead | AK52: OH
Q53: Depreciation | S53: 0 | AB53: 0 | AC53: 0 | AG53: Fencing tree plots | AH53: Landcare | AI53: LC | AJ53: Overhead | AK53: OH
Q54: Electricity and gas | S54: 10000 | AB54: 0 | AC54: 0 | AG54: Fertiliser - general | AH54: Fertiliser | AI54: FERT | AJ54: Overheads | AK54: OH | AM54: MULTIPLE
Q55: Fertiliser | S55: 31000 | AB55: 0 | AC55: 0 | AG55: Fertiliser applied to crop | AH55: Fertiliser | AI55: FERT | AJ55: Enterprise | AK55: OH | AL55: C
Q56: Fuel and lubricants | S56: 7600 | AB56: 0 | AC56: 0 | AG56: Fertiliser applied to pasture | AH56: Fertiliser | AI56: FERT | AJ56: Overhead | AK56: OH | AL56: LS
Q57: Insurance | S57: 24800 | AB57: 0 | AC57: 0 | AG57: Fodder purchases for livestock feed | AH57: Supplementary feed | AI57: SUPF | AJ57: Enterprise | AK57: EE | AL57: LS
Q58: Landcare | S58: 2000 | AB58: 0 | AC58: 0 | AG58: Freight for crop/grain sales | AH58: Freight | AI58: FRT | AJ58: Enterprise | AK58: EE | AL58: C
Q59: Lime/gypsum | S59: 7250 | AB59: 0 | AC59: 0 | AG59: Freight for sales of livestock & wool | AH59: Selling Costs | AI59: SELC | AJ59: Enterprise | AK59: EE | AL59: LS
Q60: Materials | S60: 18500 | AB60: 0 | AC60: 0 | AG60: Freight related to livestock purchases | AH60: Freight | AI60: FRT | AJ60: Enterprise | AK60: EE | AL60: LS
Q61: Motor vehicle expenses | S61: 9600 | AB61: 0 | AC61: 0 | AG61: Fuel - Diesel for crop operations | AH61: Fuel & lubricants | AI61: FUEL | AJ61: Enterprise | AK61: EE | AL61: C
Q62: Rates and rents | S62: 14300 | AB62: 0 | AC62: 0 | AG62: Fuel - Diesel for general farm use | AH62: Fuel & lubricants | AI62: FUEL | AJ62: Overhead | AK62: OH | AM62: MULTIPLE
Q63: R&M general | S63: 63600 | AB63: 0 | AC63: 0 | AG63: Fuel - Diesel, petrol, lubricants for personal use | AH63: Personal | AI63: PERS | AJ63: Personal | AK63: PERS
Q64: Seed | S64: 21000 | AB64: 0 | AC64: 0 | AG64: Fuel - general | AH64: Fuel & lubricants | AI64: FUEL | AJ64: Overheads | AK64: OH | AM64: MULTIPLE
Q65: Wages | S65: 48000 | AB65: 0 | AC65: 0 | AG65: Fuel - Lubricants for crop operations | AH65: Fuel & lubricants | AI65: FUEL | AJ65: Enterprise | AK65: EE | AL65: C
Q66: Wages owner | S66: 48000 | AB66: 0 | AC66: 0 | AG66: Fuel - Lubricants for general farm use | AH66: Fuel & lubricants | AI66: FUEL | AJ66: Overhead | AK66: OH
Q67: Total overhead expenses | S67: 364940 | AB67: 0 | AC67: 0 | AG67: Fuel - Petrol for crop operations | AH67: Fuel & lubricants | AI67: FUEL | AJ67: Enterprise | AK67: EE | AL67: C
AB68: 0 | AC68: 0 | AG68: Fuel - Petrol for general farm use | AH68: Fuel & lubricants | AI68: FUEL | AJ68: Overhead | AK68: OH
Q69: Total operating expenses | S69: =S42+X42 -> 770130 | AB69: 0 | AC69: 0 | AG69: Fumigants applied to crops | AH69: Agricultural chemicals | AI69: AGCH | AJ69: Enterprise | AK69: EE | AL69: C
AB70: 0 | AC70: 0 | AG70: Fumigants applied to pastures | AH70: Agricultural chemicals | AI70: AGCH | AJ70: Overhead | AK70: OH
Q71: Non-operating expenses | R71: Code | S71: Amount | AB71: 0 | AC71: 0 | AG71: Fungicides applied to crops | AH71: Agricultural chemicals | AI71: AGCH | AJ71: Enterprise | AK71: EE | AL71: C
Q72: Personal | R72: PERS | S72: =SUMPRODUCT(($C$11:$C$76)*($J$11:$J$76)) -> 6000 | AB72: 0 | AC72: 0 | AG72: Fungicides applied to pastures | AH72: Agricultural chemicals | AI72: AGCH | AJ72: Overhead | AK72: OH
Q73: Capital | R73: CAPEX | S73: =L79 -> 0 | AB73: 0 | AC73: 0 | AG73: Herbicides applied to crops | AH73: Agricultural chemicals | AI73: AGCH | AJ73: Enterprise | AK73: EE | AL73: C
Q74: Finance | R74: INT | S74: =K79 -> 104050 | AB74: 0 | AC74: 0 | AG74: Herbicides applied to pastures | AH74: Agricultural chemicals | AI74: AGCH | AJ74: Overhead | AK74: OH
Q75: Livestock purchases | R75: LSPUR | S75: =M79 -> 162000 | AB75: 0 | AC75: 0 | AG75: Inoculants and vaccines for livestock | AH75: Animal health & breeding | AI75: ANH | AJ75: Enterprise | AK75: EE | AL75: LS
O76: =IF(SUM(F76:N76)=100%,SUM(F76:N76),IF(B76="","","Not 100%")) ->  | Q76: Taxation | R76: TAX | S76: =N79 -> 0 | AB76: 0 | AC76: 0 | AG76: Insecticides applied to crops | AH76: Agricultural chemicals | AI76: AGCH | AJ76: Enterprise | AK76: EE | AL76: C
Q77: Total non-operating expenses | S77: =SUM(S72:S76) -> 272050 | AG77: Insecticides applied to pastures | AH77: Agricultural chemicals | AI77: AGCH | AJ77: Overhead | AK77: OH
AG78: Insurance - crop specific (hail/fire etc) | AH78: Insurance | AI78: INS | AJ78: Enterprise | AK78: EE | AL78: C
B79: Total expenses | C79: =SUM(C11:C76) -> 1042180 | F79: =SUMPRODUCT(F11:F76,$C$11:$C$76) -> 329190 | G79: =SUMPRODUCT(G11:G76,$C$11:$C$76) -> 76000 | H79: 221512 | I79: 143428 | J79: 6000 | K79: 104050 | L79: 0 | M79: 162000 | N79: 0 | Q79: Total expenses | S79: =S69+S77 -> 1042180 | AG79: Insurance - general | AH79: Insurance | AI79: INS | AJ79: Overheads | AK79: OH | AM79: MULTIPLE
AG80: Insurance - health | AH80: Personal | AI80: PERS | AJ80: Personal | AK80: PERS
AG81: Insurance - motor vehicle | AH81: Motor vehicle expenses | AI81: MVE | AJ81: Overhead | AK81: OH
B82: Purpose of the Cost allocation by enterprise tool: This tool allocates costs by categories allowing for deep insights into business performance in an efficient manner. The aim is to categorise the costs in the table so a summary of performance by livestock or crop and at a whole farm level is generated. | AG82: Insurance - other farm related | AH82: Insurance | AI82: INS | AJ82: Overhead | AK82: OH
AG83: Insurance - plant, public indemnity, accident | AH83: Insurance | AI83: INS | AJ83: Overhead | AK83: OH
AG84: Insurance general property | AH84: Insurance | AI84: INS | AJ84: Overhead | AK84: OH
B85: Disclaimer: This decision support tool is produced by Agrista. The contents do not constitute management or business advice and should not be relied on as such. Before taking any action in relation to a matter described in this decision support tool, you should seek independent advice from a qualified professional. Agrista accepts no responsibility for any loss or damage resulting from reliance on the contents of this tool. | AG85: Insurance on livestock sales | AH85: Selling Costs | AI85: SELC | AJ85: Enterprise | AK85: EE | AL85: LS
AG86: Interest costs | AH86: Interest costs | AI86: INT | AJ86: Finance | AK86: FIN
AG87: Jetting fluids and repellents for livestock | AH87: Animal health & breeding | AI87: ANH | AJ87: Enterprise | AK87: EE | AL87: LS
AG88: Landcare - general | AH88: Landcare | AI88: LC | AJ88: Overhead | AK88: OH
AG89: Lease costs | AH89: Lease costs | AI89: LEASE | AJ89: Finance | AK89: FIN
AG90: Legal fees | AH90: Administration | AI90: ADM | AJ90: Overhead | AK90: OH
AG91: Levies on livestock & wool sales | AH91: Selling Costs | AI91: SELC | AJ91: Enterprise | AK91: EE | AL91: LS
AG92: Licences for irrigation water | AH92: Irrigation | AI92: IRRIG | AJ92: Overhead | AK92: OH
AG93: Lime & gypsum | AH93: Lime | AI93: LIME | AJ93: Overheads | AK93: OH | AM93: MULTIPLE
AG94: Lime spreading | AH94: Contract services | AI94: CON | AJ94: Overhead | AK94: OH
AG95: Livestock purchases | AH95: Livestock purchases | AI95: LSP | AJ95: Gross profit | AK95: LSP | AL95: LS
AG96: Local land services rates (levies on landuse) | AH96: Rates | AI96: RAT | AJ96: Overhead | AK96: OH
AG97: Materials/Micellaneous - Livestock | AH97: Materials | AI97: MAT | AJ97: Enterprise | AK97: EE | AL97: LS
AG98: Materials/Miscellaneous - Crop | AH98: Materials | AI98: MAT | AJ98: Enterprise | AK98: EE | AL98: C
AG99: Materials/Miscellaneous - General | AH99: Materials | AI99: MAT | AJ99: Overheads | AK99: OH | AM99: MULTIPLE
AG100: Motor vehicle expenses | AH100: Motor vehicle expenses | AI100: MVE | AJ100: Overheads | AK100: OH
AG101: Motor vehicle insurance | AH101: Motor vehicle expenses | AI101: MVE | AJ101: Overhead | AK101: OH
AG102: Motor vehicle registrations | AH102: Motor vehicle expenses | AI102: MVE | AJ102: Overhead | AK102: OH
AG103: Motor vehicle repairs & maintenance | AH103: Motor vehicle expenses | AI103: MVE | AJ103: Overhead | AK103: OH
AG104: Motor vehicles - general | AH104: Motor vehicle expenses | AI104: MVE | AJ104: Overhead | AK104: OH
AG105: Owner wages | AH105: Owner wages | AI105: OWAG | AJ105: Overhead | AK105: OH
AG106: Personal - general | AH106: Personal | AI106: PERS | AJ106: Personal | AK106: PERS
AG107: Postage, printing & stationery | AH107: Administration | AI107: ADM | AJ107: Overhead | AK107: OH
AG108: Predator control | AH108: Agricultural chemicals | AI108: AGCH | AJ108: Overhead | AK108: OH
AG109: Purchased stock feeds | AH109: Supplementary feed | AI109: SUPF | AJ109: Enterprise | AK109: EE | AL109: LS
AG110: Rates on unused roads | AH110: Rates | AI110: RAT | AJ110: Overhead | AK110: OH
AG111: Repairs & maintenance cropping plant | AH111: Repairs & maintenance | AI111: R&M | AJ111: Enteprise expenses | AK111: EE | AL111: C
AG112: Repairs & maintenance - general | AH112: Repairs & maintenance | AI112: R&M | AJ112: Overhead | AK112: OH
AG113: Repairs to fixed intrastructure (bolted down) | AH113: Repairs & maintenance | AI113: R&M | AJ113: Overhead | AK113: OH
AG114: Repairs to plant and equipment - not specific to enterprise | AH114: Repairs & maintenance | AI114: R&M | AJ114: Overhead | AK114: OH
AG115: Repairs to roads | AH115: Repairs & maintenance | AI115: R&M | AJ115: Overhead | AK115: OH
AG116: Repairs to water infrastructure | AH116: Repairs & maintenance | AI116: R&M | AJ116: Overhead | AK116: OH
AG117: Sales costs - general crop | AH117: Selling Costs | AI117: SELC | AJ117: Enterprise | AK117: EE | AL117: C
AG118: Sales costs - general livestock | AH118: Selling Costs | AI118: SELC | AJ118: Enterprise | AK118: EE | AL118: LS
AG119: School fees | AH119: Personal | AI119: PERS | AJ119: Personal | AK119: PERS
AG120: Seed - for planting pasture | AH120: Seed | AI120: SEED | AJ120: Overheads | AK120: OH | AL120: LS
AG121: Seed - general | AH121: Seed | AI121: SEED | AJ121: Overheads | AK121: OH | AM121: MULTIPLE
AG122: Seed Dressings applied to crops | AH122: Agricultural chemicals | AI122: AGCH | AJ122: Enterprise | AK122: EE | AL122: C
AG123: Seed Dressings applied to pastures | AH123: Agricultural chemicals | AI123: AGCH | AJ123: Overhead | AK123: OH
AG124: Seed for pasture sowing | AH124: Seed | AI124: SEED | AJ124: Overheads | AK124: OH | AL124: LS
AG125: Seed purchased for crop planting | AH125: Seed | AI125: SEED | AJ125: Enteprise expenses | AK125: EE | AL125: C
AG126: Seminars & conferences | AH126: Administration | AI126: ADM | AJ126: Overhead | AK126: OH
AG127: Shearing | AH127: Shearing & crutching | AI127: SHR | AJ127: Enterprise | AK127: EE | AL127: LS
AG128: Shearing supplies (combs/cutters etc) | AH128: Shearing & crutching | AI128: SHR | AJ128: Enterprise | AK128: EE | AL128: LS
AG129: Shire & council rates | AH129: Rates | AI129: RAT | AJ129: Overhead | AK129: OH
AG130: Soil testing on cropping paddocks | AH130: Fertiliser | AI130: FERT | AJ130: Enterprise | AK130: OH | AL130: C | AP130: 1
AG131: Soil testing on pasture paddocks | AH131: Fertiliser | AI131: FERT | AJ131: Overhead | AK131: OH | AL131: LS
AG132: Staff Amenities | AH132: Wages | AI132: WAG | AJ132: Overhead | AK132: OH
AG133: Subscriptions & memberships | AH133: Administration | AI133: ADM | AJ133: Overhead | AK133: OH
AG134: Superannuation | AH134: Wages | AI134: WAG | AJ134: Overhead | AK134: OH
AG135: Tax | AH135: Tax | AJ135: Tax | AK135: TAX
AG136: Travel costs & accommodation | AH136: Administration | AI136: ADM | AJ136: Overhead | AK136: OH
AG137: Tree fertilisers | AH137: Landcare | AI137: LC | AJ137: Overhead | AK137: OH
AG138: Tree seedlings | AH138: Landcare | AI138: LC | AJ138: Overhead | AK138: OH
AG139: Vermin control - general overheads | AH139: Agricultural chemicals | AI139: AGCH | AJ139: Overhead | AK139: OH
AG140: Vermin control applied to crops | AH140: Agricultural chemicals | AI140: AGCH | AJ140: Enterprise | AK140: EE | AL140: C
AG141: Veterinary (Preg diagnosis, health checks, etc) | AH141: Animal health & breeding | AI141: ANH | AJ141: Enterprise | AK141: EE | AL141: LS
AG142: Wages & Salaries – General | AH142: Wages | AI142: WAG | AJ142: Overhead | AK142: OH
AG143: Water charges for irrigation water | AH143: Irrigation | AI143: IRRIG | AJ143: Overhead | AK143: OH
AG144: Woody weed spraying | AH144: Contract services | AI144: CON | AJ144: Overhead | AK144: OH | AL144: LS
AG145: Workers Compensation | AH145: Wages | AI145: WAG | AJ145: Overhead | AK145: OH
AG146: Yard fees associated with livestock sales | AH146: Selling Costs | AI146: SELC | AJ146: Enterprise | AK146: EE | AL146: LS

Sheet Cost categories
B2: Cost | C2: Category 1 | E2: Category 2
B4: Accounting | C4: Administration | D4: ADM | E4: Overhead | F4: OH
B5: Administration - general | C5: Administration | D5: ADM | E5: Overhead | F5: OH
B6: Agistment | C6: Supplementary feed | D6: SUPF | E6: Enterprise | F6: EE
B7: Animal health treatments | C7: Animal health & breeding | D7: ANH | E7: Enterprise | F7: EE
B8: Antibiotics and medicines, syringes, needles | C8: Animal health & breeding | D8: ANH | E8: Enterprise | F8: EE
B9: Antiseptic, ointments and powders for livestock | C9: Animal health & breeding | D9: ANH | E9: Enterprise | F9: EE
B10: Bank fees | C10: Administration | D10: ADM | E10: Overhead | F10: OH
B11: Breeding Ram harnesses, excl Semen | C11: Animal health & breeding | D11: ANH | E11: Enterprise | F11: EE
B12: Breeding regulators (eg. hormones) if not in AI | C12: Animal health & breeding | D12: ANH | E12: Enterprise | F12: EE
B13: Capital expenditure - general | C13: Capital expenditure | D13: CAPEX | E13: Capex | F13: CAP
B14: Chemicals - crop | C14: Agricultural chemicals | D14: AGCH | E14: Enterprise | F14: EE
B15: Chemicals - for landcare work | C15: Landcare | D15: LC | E15: Overhead | F15: OH
B16: Chemicals - general | C16: Agricultural chemicals | D16: AGCH | E16: Overheads | F16: OH
B17: Classing (sheep) | C17: Animal health & breeding | D17: ANH | E17: Enterprise | F17: EE
B18: Commission on livestock sales | C18: Selling Costs | D18: SELC | E18: Enterprise | F18: EE
B19: Communications (telephone, internet, mobile) | C19: Administration | D19: ADM | E19: Overhead | F19: OH
B20: Computer costs (computers, programs, apps) | C20: Administration | D20: ADM | E20: Overhead | F20: OH
B21: Consulting fees | C21: Administration | D21: ADM | E21: Overhead | F21: OH
B22: Contract costs earthworks (existing works) | C22: Repairs & maintenance | D22: R&M | E22: Overhead | F22: OH
B23: Contract costs earthworks (new works) | C23: Capital expenditure | D23: CAPEX | E23: Capital expenditure | F23: CAP
B24: Contract crop operations (sow/harvest/spray spread) | C24: Contract services | D24: CON | E24: Enterprise | F24: EE
B25: Contract fencing operations (building new fences) | C25: Capital expenditure | D25: CAPEX | E25: Capital expenditure | F25: CAP
B26: Contract fencing operations (repairs to existing fences) | C26: Repairs & maintenance | D26: R&M | E26: Overhead | F26: OH
B27: Contract livestock mustering | C27: Contract services | D27: CON | E27: Enterprise | F27: EE
B28: Contract livestock operations (mark/yardwork) | C28: Contract services | D28: CON | E28: Enterprise | F28: EE
B29: Contract pasture operations (sow/spray/plough/spread) | C29: Contract services | D29: CON | E29: Overhead | F29: OH
B30: Contract work - general | C30: Contract services | D30: CON | E30: Overhead | F30: OH
B31: Contractors for infrastructure build (buidling new) | C31: Capital expenditure | D31: CAPEX | E31: Capital expenditure | F31: CAP
B32: Contractors for infrastructure repairs (repairing existing) | C32: Repairs & maintenance | D32: R&M | E32: Overhead | F32: OH
B33: Crutching | C33: Shearing & crutching | D33: SHR | E33: Enterprise | F33: EE
B34: Deep ripping for planting | C34: Landcare | D34: LC | E34: Overhead | F34: OH
B35: Depreciation | C35: Depreciation | D35: DEP | E35: Overhead | F35: OH
B36: Dips and sprays for livestock | C36: Animal health & breeding | D36: ANH | E36: Enterprise | F36: EE
B37: Drawings | C37: Drawings | D37: DRAW | E37: Personal | F37: PERS
B38: Drenches and drench guns | C38: Animal health & breeding | D38: ANH | E38: Enterprise | F38: EE
B39: Electricity farm | C39: Electricity & gas | D39: ELG | E39: Overhead | F39: OH
B40: Electricity pumps | C40: Electricity & gas | D40: ELG | E40: Overhead | F40: OH
B41: Electricity sheds | C41: Electricity & gas | D41: ELG | E41: Overhead | F41: OH
B42: Employment Expenses | C42: Wages | D42: WAG | E42: Overhead | F42: OH
B43: Farm grown feed @ market value | C43: Supplementary feed | D43: SUPF | E43: Enterprise | F43: EE
B44: Fencing materials (new fences) | C44: Capital expenditure | D44: CAPEX | E44: Capex | F44: CAP
B45: Fencing materials (repairing existing fences) | C45: Repairs & maintenance | D45: R&M | E45: Overhead | F45: OH
B46: Fencing tree plots | C46: Landcare | D46: LC | E46: Overhead | F46: OH
B47: Fertiliser - general | C47: Fertiliser | D47: FERT | E47: Overheads | F47: OH
B48: Fertiliser applied to crop | C48: Fertiliser | D48: FERT | E48: Enterprise | F48: OH
B49: Fertiliser applied to pasture | C49: Fertiliser | D49: FERT | E49: Overhead | F49: OH
B50: Fodder purchases for livestock feed | C50: Supplementary feed | D50: SUPF | E50: Enterprise | F50: EE
B51: Freight for crop/grain sales | C51: Freight | D51: FRT | E51: Enterprise | F51: EE
B52: Freight for sales of livestock & wool | C52: Selling Costs | D52: SELC | E52: Enterprise | F52: EE
B53: Freight related to livestock purchases | C53: Freight | D53: FRT | E53: Enterprise | F53: EE
B54: Fuel - Diesel for crop operations | C54: Fuel & lubricants | D54: FUEL | E54: Enterprise | F54: EE
B55: Fuel - Diesel for general farm use | C55: Fuel & lubricants | D55: FUEL | E55: Overhead | F55: OH
B56: Fuel - Diesel, petrol, lubricants for personal use | C56: Personal | D56: PERS | E56: Personal | F56: PERS
B57: Fuel - general | C57: Fuel & lubricants | D57: FUEL | E57: Overheads | F57: OH
B58: Fuel - Lubricants for crop operations | C58: Fuel & lubricants | D58: FUEL | E58: Enterprise | F58: EE
B59: Fuel - Lubricants for general farm use | C59: Fuel & lubricants | D59: FUEL | E59: Overhead | F59: OH
B60: Fuel - Petrol for crop operations | C60: Fuel & lubricants | D60: FUEL | E60: Enterprise | F60: EE
B61: Fuel - Petrol for general farm use | C61: Fuel & lubricants | D61: FUEL | E61: Overhead | F61: OH
B62: Fumigants applied to crops | C62: Agricultural chemicals | D62: AGCH | E62: Enterprise | F62: EE
B63: Fumigants applied to pastures | C63: Agricultural chemicals | D63: AGCH | E63: Overhead | F63: OH
B64: Fungicides applied to crops | C64: Agricultural chemicals | D64: AGCH | E64: Enterprise | F64: EE
B65: Fungicides applied to pastures | C65: Agricultural chemicals | D65: AGCH | E65: Overhead | F65: OH
B66: Herbicides applied to crops | C66: Agricultural chemicals | D66: AGCH | E66: Enterprise | F66: EE
B67: Herbicides applied to pastures | C67: Agricultural chemicals | D67: AGCH | E67: Overhead | F67: OH
B68: Inoculants and vaccines for livestock | C68: Animal health & breeding | D68: ANH | E68: Enterprise | F68: EE
B69: Insecticides applied to crops | C69: Agricultural chemicals | D69: AGCH | E69: Enterprise | F69: EE
B70: Insecticides applied to pastures | C70: Agricultural chemicals | D70: AGCH | E70: Overhead | F70: OH
B71: Insurance - crop specific (hail/fire etc) | C71: Insurance | D71: INS | E71: Enterprise | F71: EE
B72: Insurance - general | C72: Insurance | D72: INS | E72: Overheads | F72: OH
B73: Insurance - health | C73: Personal | D73: PERS | E73: Personal | F73: PERS
B74: Insurance - motor vehicle | C74: Motor vehicle expenses | D74: MVE | E74: Overhead | F74: OH
B75: Insurance - other farm related | C75: Insurance | D75: INS | E75: Overhead | F75: OH
B76: Insurance - plant, public indemnity, accident | C76: Insurance | D76: INS | E76: Overhead | F76: OH
B77: Insurance general property | C77: Insurance | D77: INS | E77: Overhead | F77: OH
B78: Insurance on livestock sales | C78: Selling Costs | D78: SELC | E78: Enterprise | F78: EE
B79: Interest costs | C79: Interest costs | D79: INT | E79: Finance | F79: FIN
B80: Jetting fluids and repellents for livestock | C80: Animal health & breeding | D80: ANH | E80: Enterprise | F80: EE
B81: Landcare - general | C81: Landcare | D81: LC | E81: Overhead | F81: OH
B82: Lease costs | C82: Lease costs | D82: LEASE | E82: Finance | F82: FIN
B83: Legal fees | C83: Administration | D83: ADM | E83: Overhead | F83: OH
B84: Levies on livestock & wool sales | C84: Selling Costs | D84: SELC | E84: Enterprise | F84: EE
B85: Licences for irrigation water | C85: Irrigation | D85: IRRIG | E85: Overhead | F85: OH
B86: Lime & gypsum | C86: Lime | D86: LIME | E86: Overheads | F86: OH
B87: Lime spreading | C87: Contract services | D87: CON | E87: Overhead | F87: OH
B88: Livestock purchases | C88: Livestock purchases | D88: LSP | E88: Gross profit | F88: LSP
B89: Local land services rates (levies on landuse) | C89: Rates | D89: RAT | E89: Overhead | F89: OH
B90: Materials/Micellaneous - Livestock | C90: Materials | D90: MAT | E90: Enterprise | F90: EE
B91: Materials/Miscellaneous - Crop | C91: Materials | D91: MAT | E91: Enterprise | F91: EE
B92: Materials/Miscellaneous - General | C92: Materials | D92: MAT | E92: Overheads | F92: OH
B93: Motor vehicle expenses | C93: Motor vehicle expenses | D93: MVE | E93: Overheads | F93: OH
B94: Motor vehicle insurance | C94: Motor vehicle expenses | D94: MVE | E94: Overhead | F94: OH
B95: Motor vehicle registrations | C95: Motor vehicle expenses | D95: MVE | E95: Overhead | F95: OH
B96: Motor vehicle repairs & maintenance | C96: Motor vehicle expenses | D96: MVE | E96: Overhead | F96: OH
B97: Motor vehicles - general | C97: Motor vehicle expenses | D97: MVE | E97: Overhead | F97: OH
B98: Owner wages | C98: Owner wages | D98: OWAG | E98: Overhead | F98: OH
B99: Personal - general | C99: Personal | D99: PERS | E99: Personal | F99: PERS
B100: Postage, printing & stationery | C100: Administration | D100: ADM | E100: Overhead | F100: OH
B101: Predator control | C101: Agricultural chemicals | D101: AGCH | E101: Overhead | F101: OH
B102: Purchased stock feeds | C102: Supplementary feed | D102: SUPF | E102: Enterprise | F102: EE
B103: Rates on unused roads | C103: Rates | D103: RAT | E103: Overhead | F103: OH
B104: Repairs & maintenance cropping plant | C104: Repairs & maintenance | D104: R&M | E104: Enteprise expenses | F104: EE
B105: Repairs & maintenance - general | C105: Repairs & maintenance | D105: R&M | E105: Overhead | F105: OH
B106: Repairs to fixed intrastructure (bolted down) | C106: Repairs & maintenance | D106: R&M | E106: Overhead | F106: OH
B107: Repairs to plant and equipment - not specific to enterprise | C107: Repairs & maintenance | D107: R&M | E107: Overhead | F107: OH
B108: Repairs to roads | C108: Repairs & maintenance | D108: R&M | E108: Overhead | F108: OH
B109: Repairs to water infrastructure | C109: Repairs & maintenance | D109: R&M | E109: Overhead | F109: OH
B110: Sales costs - general crop | C110: Selling Costs | D110: SELC | E110: Enterprise | F110: EE
B111: Sales costs - general livestock | C111: Selling Costs | D111: SELC | E111: Enterprise | F111: EE
B112: School fees | C112: Personal | D112: PERS | E112: Personal | F112: PERS
B113: Seed - for planting pasture | C113: Seed | D113: SEED | E113: Overheads | F113: OH
B114: Seed - general | C114: Seed | D114: SEED | E114: Overheads | F114: OH
B115: Seed Dressings applied to crops | C115: Agricultural chemicals | D115: AGCH | E115: Enterprise | F115: EE
B116: Seed Dressings applied to pastures | C116: Agricultural chemicals | D116: AGCH | E116: Overhead | F116: OH
B117: Seed for pasture sowing | C117: Seed | D117: SEED | E117: Overheads | F117: OH
B118: Seed purchased for crop planting | C118: Seed | D118: SEED | E118: Enteprise expenses | F118: EE
B119: Seminars & conferences | C119: Administration | D119: ADM | E119: Overhead | F119: OH
B120: Shearing | C120: Shearing & crutching | D120: SHR | E120: Enterprise | F120: EE
B121: Shearing supplies (combs/cutters etc) | C121: Shearing & crutching | D121: SHR | E121: Enterprise | F121: EE
B122: Shire & council rates | C122: Rates | D122: RAT | E122: Overhead | F122: OH
B123: Soil testing on cropping paddocks | C123: Fertiliser | D123: FERT | E123: Enterprise | F123: OH
B124: Soil testing on pasture paddocks | C124: Fertiliser | D124: FERT | E124: Overhead | F124: OH
B125: Staff Amenities | C125: Wages | D125: WAG | E125: Overhead | F125: OH
B126: Subscriptions & memberships | C126: Administration | D126: ADM | E126: Overhead | F126: OH
B127: Superannuation | C127: Wages | D127: WAG | E127: Overhead | F127: OH
B128: Tax | C128: Tax | E128: Tax | F128: TAX
B129: Travel costs & accommodation | C129: Administration | D129: ADM | E129: Overhead | F129: OH
B130: Tree fertilisers | C130: Landcare | D130: LC | E130: Overhead | F130: OH
B131: Tree seedlings | C131: Landcare | D131: LC | E131: Overhead | F131: OH
B132: Vermin control - general overheads | C132: Agricultural chemicals | D132: AGCH | E132: Overhead | F132: OH
B133: Vermin control applied to crops | C133: Agricultural chemicals | D133: AGCH | E133: Enterprise | F133: EE
B134: Veterinary (Preg diagnosis, health checks, etc) | C134: Animal health & breeding | D134: ANH | E134: Enterprise | F134: EE
B135: Wages & Salaries – General | C135: Wages | D135: WAG | E135: Overhead | F135: OH
B136: Water charges for irrigation water | C136: Irrigation | D136: IRRIG | E136: Overhead | F136: OH
B137: Woody weed spraying | C137: Contract services | D137: CON | E137: Overhead | F137: OH
B138: Workers Compensation | C138: Wages | D138: WAG | E138: Overhead | F138: OH
B139: Yard fees associated with livestock sales | C139: Selling Costs | D139: SELC | E139: Enterprise | F139: EE
